fUSD/lending_fUSD_20260202
["ID","MTS","AMOUNT","RATE_DAILY","PERIOD"]
[404257277,1770010243285,-336.43827265,0.00015473,2]
[404257278,1770010243294,-161.45537985,0.00015473,2]
[404257279,1770010243304,-501.12989903,0.00015473,2]
[404257280,1770010243313,-500.0,0.00015473,2]
[404257281,1770010243322,-500.0,0.00015473,2]
[404257282,1770010243333,-500.0,0.00015473,2]
[404257283,1770010243342,-500.0,0.00015473,2]
[404257284,1770010243352,-522.30858015,0.00015473,2]
[404257285,1770010243362,-500.0,0.00015473,2]
[404257286,1770010243372,-500.62768041,0.00015473,2]
[404257287,1770010243382,-501.33451157,0.00015473,2]
[404257288,1770010243392,-559.67308476,0.00015473,2]
[404257289,1770010243402,-500.6120606,0.00015473,2]
[404257290,1770010243412,-512.94754167,0.00015473,2]
[404257291,1770010243421,-500.0,0.00015473,2]
[404257292,1770010243431,-500.0,0.00015473,2]
[404257293,1770010243441,-500.63586771,0.00015473,2]
[404257294,1770010243450,-486.90150068,0.00015473,2]
[404257295,1770010243459,-500.0,0.00015473,2]
[404257296,1770010243469,-151.07783782,0.00015473,2]
[404257297,1770010243479,-500.0,0.00015473,2]
[404257298,1770010243489,-500.0,0.00015473,2]
[404257299,1770010243498,-500.0,0.00015473,2]
[404257300,1770010243508,-500.0,0.00015473,2]
[404257301,1770010243517,-160.54295648,0.00015473,2]
[404257302,1770010243527,-464.35211832,0.00015473,2]
[404257303,1770010243537,-500.40906893,0.00015473,2]
[404257304,1770010243550,-500.0,0.00015473,2]
[404257305,1770010243560,-500.41005015,0.00015473,2]
[404257306,1770010243569,-500.0,0.00015473,2]
[404257307,1770010243579,-500.0,0.00015473,2]
[404257308,1770010243588,-500.0,0.00015473,2]
[404257309,1770010243598,-500.0,0.00015473,2]
[404257310,1770010243608,-500.0,0.00015473,2]
[404257311,1770010243618,-185.46503654,0.00015473,2]
[404257312,1770010243628,-500.0,0.00015473,2]
[404257313,1770010243638,-500.0,0.00015473,2]
[404257314,1770010243648,-500.0,0.00015473,2]
[404257315,1770010243657,-291.61164288,0.00015473,2]
[404257316,1770010243668,-500.0,0.00015473,2]
[404257317,1770010243677,-500.0,0.00015473,2]
[404257318,1770010243687,-500.0,0.00015473,2]
[404257319,1770010243697,-500.0,0.00015473,2]
[404257320,1770010243706,-500.0,0.00015473,2]
[404257321,1770010243716,-500.0,0.00015473,2]
[404257322,1770010243726,-501.96102054,0.00015473,2]
[404257323,1770010243736,-550.09529227,0.00015473,2]
[404257324,1770010243746,-500.0,0.00015473,2]
[404257325,1770010243756,-14686.554816,0.00015505,2]
[404257326,1770010243765,-14856.51400885,0.00015505,2]
[404257327,1770010243776,-166.66,0.00015527,2]
[404257328,1770010243786,-1017.59890922,0.00015544,2]
[404257329,1770010243795,-5456.35939943,0.00015837,2]
[404257330,1770010243804,-1600.0,0.0001596,2]
[404257331,1770010243814,-956.83032625,0.00016,2]
[404257332,1770010243824,-270.91542523,0.00016,2]
[404257333,1770010243833,-421.15115649,0.00016,2]
[404257334,1770010243843,-502.28798495,0.00016021,2]
[404257335,1770010243852,-899.10712823,0.00016021,2]
[404257336,1770010243862,-1003.91068608,0.00016021,2]
[404257337,1770010243872,-1000.0,0.00016021,2]
[404257338,1770010243882,-1000.0,0.00016021,2]
[404257339,1770010243891,-1000.0,0.00016021,2]
[404257340,1770010243900,-501.89927416,0.00016021,2]
[404257341,1770010243910,-1000.0,0.00016021,2]
[404257342,1770010243919,-1000.0,0.00016021,2]
[404257343,1770010243928,-1000.0,0.00016021,2]
[404257344,1770010243938,-1000.0,0.00016021,2]
[404257345,1770010243947,-501.94112039,0.00016021,2]
[404257346,1770010243957,-1000.0,0.00016021,2]
[404257347,1770010243966,-1018.80564021,0.00016021,2]
[404257348,1770010243976,-1000.0,0.00016021,2]
[404257349,1770010243985,-1003.27979337,0.00016021,2]
[404257350,1770010243994,-1000.0,0.00016021,2]
[404257351,1770010244003,-1000.0,0.00016021,2]
[404257352,1770010244013,-1000.0,0.00016021,2]
[404257353,1770010244023,-1000.0,0.00016021,2]
[404257354,1770010244033,-1000.0,0.00016021,2]
[404257355,1770010244043,-1000.0,0.00016021,2]
[404257356,1770010244053,-1000.0,0.00016021,2]
[404257357,1770010244063,-1000.0,0.00016021,2]
[404257358,1770010244072,-1000.0,0.00016021,2]
[404257359,1770010244082,-586.45296103,0.00016021,2]
[404257360,1770010244091,-1000.0,0.00016021,2]
[404257361,1770010244100,-1000.0,0.00016021,2]
[404257362,1770010244109,-501.08336444,0.00016021,2]
[404257363,1770010244119,-1000.0,0.00016021,2]
[404257364,1770010244127,-1000.0,0.00016021,2]
[404257365,1770010244136,-1000.0,0.00016021,2]
[404257366,1770010244145,-501.09302375,0.00016021,2]
[404257367,1770010244155,-1000.0,0.00016021,2]
[404257368,1770010244164,-1000.0,0.00016021,2]
[404257369,1770010244174,-1000.0,0.00016021,2]
[404257370,1770010244184,-1000.0,0.00016021,2]
[404257371,1770010244194,-1000.0,0.00016021,2]
[404257372,1770010244203,-1003.56149344,0.00016021,2]
[404257373,1770010244212,-1145.60955598,0.00016021,2]
[404257374,1770010244222,-309.64096841,0.00016104,2]
[404257375,1770010244231,-14686.554816,0.00016104,2]
[404257376,1770010244242,-14856.51400885,0.00016104,2]
[404257377,1770010244252,-500.0,0.00016192,2]
[404257378,1770010244262,-6435.36503884,0.000162,5]
[404257379,1770010244272,-150.00026023,0.0001623,2]
[404257380,1770010244281,-165.0,0.000164,2]
[404257381,1770010244291,-1872.11781497,0.00016438,2]
[404257382,1770010244300,-275.80347976,0.00016438,2]
[404257383,1770010244310,-284.66,0.00016438,2]
[404257384,1770010244319,-250.55733734,0.00016438,2]
[404257385,1770010244329,-800.78453244,0.00016438,2]
[404257386,1770010244338,-160.02702936,0.00016501,2]
[404257387,1770010244348,-10091.57601831,0.0001652,2]
[404257388,1770010244358,-545.1454494,0.00016568,2]
[404257389,1770010244367,-1500.0,0.00016568,2]
[404257390,1770010244376,-1500.0,0.00016568,2]
[404257391,1770010244385,-1500.0,0.00016568,2]
[404257392,1770010244395,-622.87168328,0.00016568,2]
[404257393,1770010244404,-1004.26216588,0.00016568,2]
[404257394,1770010244413,-1500.0,0.00016568,2]
[404257395,1770010244423,-1500.0,0.00016568,2]
[404257396,1770010244432,-504.30163313,0.00016568,2]
[404257397,1770010244442,-343.08326797,0.00016568,2]
[404257398,1770010244452,-505.38162593,0.00016568,2]
[404257399,1770010244461,-1005.54193795,0.00016568,2]
[404257400,1770010244470,-1500.0,0.00016568,2]
[404257401,1770010244480,-1500.0,0.00016568,2]
[404257402,1770010244489,-1500.0,0.00016568,2]
[404257403,1770010244498,-665.40489721,0.00016568,2]
[404257404,1770010244508,-1500.0,0.00016568,2]
[404257405,1770010244517,-1500.0,0.00016568,2]
[404257406,1770010244527,-1005.24936027,0.00016568,2]
[404257407,1770010244538,-240.83933027,0.00016568,2]
[404257408,1770010244550,-1500.0,0.00016568,2]
[404257409,1770010244560,-1500.0,0.00016568,2]
[404257410,1770010244570,-505.45817911,0.00016568,2]
[404257411,1770010244580,-776.88278142,0.00016568,2]
[404257412,1770010244590,-504.6853335,0.00016568,2]
[404257413,1770010244599,-1500.0,0.00016568,2]
[404257414,1770010244608,-1500.0,0.00016568,2]
[404257415,1770010244619,-1500.0,0.00016568,2]
[404257416,1770010244629,-283.5506856,0.00016601,2]
[404257417,1770010244638,-250.0,0.00016665,2]
[404257418,1770010244647,-14686.554816,0.00016703,2]
[404257419,1770010244657,-14856.51400885,0.00016703,2]
[404257420,1770010244667,-195.13,0.00016712,2]
[404257421,1770010244676,-163.0,0.0001672,2]
[404257422,1770010244686,-2735.0,0.00016785,2]
[404257423,1770010244695,-1000.0,0.00016789,2]
[404257424,1770010244703,-578.20924308,0.00016853,2]
[404257425,1770010244713,-209.40437684,0.00016853,2]
[404257426,1770010244722,-500.0,0.00016853,2]
[404257427,1770010244731,-209.40437684,0.00016853,2]
[404257428,1770010244739,-500.0,0.00016853,2]
[404257429,1770010244748,-500.0,0.00016853,2]
[404257430,1770010244758,-500.0,0.00016853,2]
[404257431,1770010244767,-500.0,0.00016853,2]
[404257432,1770010244779,-151.0,0.00016853,2]
[404257433,1770010244788,-500.0,0.00016853,2]
[404257434,1770010244797,-151.0,0.00016853,2]
[404257435,1770010244806,-500.0,0.00016853,2]
[404257436,1770010244815,-151.0,0.00016853,2]
[404257437,1770010244824,-500.0,0.00016853,2]
[404257438,1770010244833,-151.0,0.00016853,2]
[404257439,1770010244842,-174.61919141,0.00016853,2]
[404257440,1770010244851,-151.49674582,0.00016853,2]
[404257441,1770010244861,-500.0,0.00016853,2]
[404257442,1770010244870,-151.0,0.00016853,2]
[404257443,1770010244881,-500.0,0.00016853,2]
[404257444,1770010244891,-151.0,0.00016853,2]
[404257445,1770010244901,-500.0,0.00016853,2]
[404257446,1770010244911,-151.0,0.00016853,2]
[404257447,1770010244920,-151.0,0.00016853,2]
[404257448,1770010244932,-151.0,0.00016853,2]
[404257449,1770010244942,-151.0,0.00016853,2]
[404257450,1770010244952,-151.0,0.00016853,2]
[404257451,1770010244961,-721.12765535,0.00016853,2]
[404257452,1770010244971,-250.0,0.00016853,2]
[404257453,1770010244981,-250.0,0.00016853,2]
[404257454,1770010244991,-250.0,0.00016853,2]
[404257455,1770010245000,-500.0,0.00016853,2]
[404257456,1770010245009,-250.0,0.00016853,2]
[404257457,1770010245020,-250.0,0.00016853,2]
[404257458,1770010245034,-250.0,0.00016853,2]
[404257459,1770010245043,-250.0,0.00016853,2]
[404257460,1770010245052,-500.0,0.00016853,2]
[404257461,1770010245061,-250.0,0.00016853,2]
[404257462,1770010245071,-250.0,0.00016853,2]
[404257463,1770010245080,-500.0,0.00016853,2]
[404257464,1770010245089,-250.0,0.00016853,2]
[404257465,1770010245098,-250.0,0.00016853,2]
[404257466,1770010245107,-250.0,0.00016853,2]
[404257467,1770010245116,-500.0,0.00016853,2]
[404257468,1770010245125,-250.0,0.00016853,2]
[404257469,1770010245135,-1428.38747117,0.00016853,2]
[404257470,1770010245145,-250.0,0.00016853,2]
[404257471,1770010245154,-250.0,0.00016853,2]
[404257472,1770010245163,-250.0,0.00016853,2]
[404257473,1770010245172,-500.0,0.00016853,2]
[404257474,1770010245182,-250.0,0.00016853,2]
[404257475,1770010245191,-250.0,0.00016853,2]
[404257476,1770010245200,-250.0,0.00016853,2]
[404257477,1770010245209,-500.0,0.00016853,2]
[404257478,1770010245218,-250.0,0.00016853,2]
[404257479,1770010245228,-250.0,0.00016853,2]
[404257480,1770010245237,-500.0,0.00016853,2]
[404257481,1770010245247,-250.0,0.00016853,2]
[404257482,1770010245256,-250.0,0.00016853,2]
[404257483,1770010245265,-250.0,0.00016853,2]
[404257484,1770010245276,-500.0,0.00016853,2]
[404257485,1770010245285,-250.0,0.00016853,2]
[404257486,1770010245294,-250.0,0.00016853,2]
[404257487,1770010245303,-500.0,0.00016853,2]
[404257488,1770010245313,-250.0,0.00016853,2]
[404257489,1770010245322,-250.0,0.00016853,2]
[404257490,1770010245331,-500.0,0.00016853,2]
[404257491,1770010245341,-250.0,0.00016853,2]
[404257492,1770010245350,-250.0,0.00016853,2]
[404257493,1770010245360,-322.6107,0.00016853,2]
[404257494,1770010245369,-344.38825217,0.00016853,2]
[404257495,1770010245379,-250.0,0.00016853,2]
[404257496,1770010245389,-250.0,0.00016853,2]
[404257497,1770010245399,-250.0,0.00016853,2]
[404257498,1770010245409,-250.0,0.00016853,2]
[404257499,1770010245419,-250.0,0.00016853,2]
[404257500,1770010245429,-500.0,0.00016853,2]
[404257501,1770010245439,-209.40437684,0.00016853,2]
[404257502,1770010245449,-250.0,0.00016853,2]
[404257503,1770010245458,-500.0,0.00016853,2]
[404257504,1770010245468,-250.0,0.00016853,2]
[404257505,1770010245478,-500.0,0.00016853,2]
[404257506,1770010245488,-250.0,0.00016853,2]
[404257507,1770010245497,-500.0,0.00016853,2]
[404257508,1770010245506,-250.0,0.00016853,2]
[404257509,1770010245516,-500.0,0.00016853,2]
[404257510,1770010245529,-250.0,0.00016853,2]
[404257511,1770010245542,-500.0,0.00016853,2]
[404257512,1770010245551,-250.0,0.00016853,2]
[404257513,1770010245560,-500.0,0.00016853,2]
[404257514,1770010245570,-250.0,0.00016853,2]
[404257515,1770010245579,-500.0,0.00016853,2]
[404257516,1770010245589,-250.0,0.00016853,2]
[404257517,1770010245598,-168.90333538,0.00016853,2]
[404257518,1770010245608,-500.0,0.00016853,2]
[404257520,1770010245619,-250.0,0.00016853,2]
[404257522,1770010245629,-500.0,0.00016853,2]
[404257524,1770010245639,-500.0,0.00016853,2]
[404257526,1770010245648,-859.80605061,0.00016853,2]
[404257527,1770010245658,-500.0,0.00016853,2]
[404257528,1770010245667,-500.0,0.00016853,2]
[404257529,1770010245676,-500.0,0.00016853,2]
[404257530,1770010245685,-500.0,0.00016853,2]
[404257531,1770010245695,-500.0,0.00016853,2]
[404257532,1770010245704,-500.0,0.00016853,2]
[404257533,1770010245714,-500.0,0.00016853,2]
[404257534,1770010245723,-500.0,0.00016853,2]
[404257535,1770010245732,-500.0,0.00016853,2]
[404257536,1770010245741,-500.0,0.00016853,2]
[404257537,1770010245750,-500.0,0.00016853,2]
[404257538,1770010245760,-216.67,0.00016856,2]
[404257539,1770010245769,-163.0,0.000169,2]
[404257540,1770010245781,-218.5764064,0.00016903,2]
[404257542,1770010245790,-217.15233878,0.00016908,2]
[404257544,1770010245799,-393.46,0.00016908,2]
[404257546,1770010245808,-291.3,0.00016914,2]
[404257548,1770010245818,-500.0,0.00016918,2]
[404257550,1770010245827,-868.9,0.00016922,2]
[404257552,1770010245837,-225.18697532,0.00016963,2]
[404257553,1770010245846,-2205.73614126,0.00017,3]
[404257554,1770010245855,-300.0,0.00017,2]
[404257555,1770010245864,-157726.06092768,0.00017,2]
[404257556,1770010245872,-309.64096841,0.00017002,2]
[404257557,1770010245881,-233.51889341,0.00017018,2]
[404257558,1770010245890,-180.29,0.00017068,2]
[404257561,1770010245899,-242.15909246,0.00017073,2]
[404257564,1770010245909,-1756.98671009,0.00017116,2]
[404257566,1770010245918,-1988.36339388,0.00017116,2]
[404257568,1770010245928,-1008.230722,0.00017116,2]
[404257570,1770010245937,-2128.18837233,0.00017116,2]
[404257573,1770010245947,-1474.64879752,0.00017116,2]
[404257575,1770010245957,-1143.18674336,0.00017116,2]
[404257577,1770010245966,-2000.0,0.00017116,2]
[404257579,1770010245975,-2000.0,0.00017116,2]
[404257581,1770010245985,-315.28060531,0.00017116,2]
[404257583,1770010245995,-2000.0,0.00017116,2]
[404257584,1770010246005,-1006.20015718,0.00017116,2]
[404257585,1770010246015,-2000.0,0.00017116,2]
[404257586,1770010246025,-1189.68040771,0.00017116,2]
[404257587,1770010246035,-2000.0,0.00017116,2]
[404257588,1770010246044,-2000.0,0.00017116,2]
[404257589,1770010246054,-251.11897888,0.00017128,2]
[404257590,1770010246063,-180.29,0.00017178,2]
[404257591,1770010246073,-150.57,0.00017178,2]
[404257592,1770010246082,-180.29,0.00017178,2]
[404257593,1770010246092,-260.4103811,0.00017183,2]
[404257594,1770010246102,-160.02702936,0.00017188,2]
[404257595,1770010246111,-4247.0,0.00017196,2]
[404257596,1770010246121,-989.28,0.00017196,2]
[404257597,1770010246131,-1500.0,0.000172,2]
[404257598,1770010246140,-4247.0,0.00017215,2]
[404257599,1770010246150,-270.0455652,0.00017238,2]
[404257600,1770010246160,-162.264,0.00017249,2]
[404257601,1770010246169,-3253.0,0.00017249,2]
[404257602,1770010246179,-1338.357,0.00017249,2]
[404257604,1770010246188,-1899.6725397,0.00017257,2]
[404257605,1770010246198,-1000.0,0.0001726,2]
[404257607,1770010246207,-4247.0,0.0001728,2]
[404257609,1770010246217,-228.0,0.00017289,2]
[404257611,1770010246226,-280.03725112,0.00017293,2]
[404257612,1770010246236,-773.23,0.00017293,2]
[404257614,1770010246246,-4247.0,0.00017301,2]
[404257616,1770010246255,-14686.554816,0.00017301,2]
[404257617,1770010246265,-14856.51400885,0.00017301,2]
[404257619,1770010246276,-290.39862941,0.00017348,2]
[404257621,1770010246287,-163.0,0.0001736,2]
[404257623,1770010246296,-163.0,0.0001736,2]
[404257625,1770010246305,-163.0,0.0001736,2]
[404257627,1770010246314,-1500.0,0.000174,2]
[404257629,1770010246324,-217.15233878,0.00017401,2]
[404257631,1770010246333,-217.15233878,0.00017401,2]
[404257634,1770010246343,-181.08010149,0.00017401,2]
[404257636,1770010246353,-1481.23780761,0.00017401,2]
[404257638,1770010246363,-891.61887448,0.00017401,2]
[404257640,1770010246372,-301.1433787,0.00017403,2]
[404257642,1770010246382,-5888.0,0.00017423,2]
[404257644,1770010246391,-13442.50995431,0.000175,2]
[404257646,1770010246401,-1000.0,0.00017534,2]
[404257648,1770010246411,-1522.26710959,0.00017544,2]
[404257650,1770010246420,-2059.6752,0.00017544,2]
[404257652,1770010246430,-163.0,0.00017555,2]
[404257654,1770010246439,-1600.0,0.00017556,2]
[404257656,1770010246449,-773.47,0.00017567,2]
[404257658,1770010246458,-4247.0,0.00017577,2]
[404257660,1770010246467,-3012.2001319,0.0001764,2]
[404257662,1770010246476,-5304.0,0.00017652,2]
[404257664,1770010246485,-1002.53462592,0.00017664,2]
[404257666,1770010246495,-947.23523297,0.00017664,2]
[404257668,1770010246505,-502.76473862,0.00017664,2]
[404257670,1770010246514,-1002.03881526,0.00017664,2]
[404257672,1770010246525,-1216.63993214,0.00017664,2]
[404257674,1770010246534,-1504.86417643,0.00017664,2]
[404257676,1770010246544,-163.0,0.0001768,2]
[404257678,1770010246555,-150.0,0.00017698,2]
[404257680,1770010246565,-150.0,0.00017698,2]
[404257683,1770010246574,-150.0,0.00017698,2]
[404257685,1770010246583,-500.0,0.00017698,2]
[404257687,1770010246594,-500.0,0.00017698,2]
[404257689,1770010246604,-150.0,0.00017698,2]
[404257691,1770010246613,-150.0,0.00017698,2]
[404257709,1770010246625,-150.0,0.00017698,2]
[404257715,1770010246817,-150.0,0.00017698,2]
[404257717,1770010246827,-500.0,0.00017698,2]
[404257719,1770010246837,-500.0,0.00017698,2]
[404257721,1770010246847,-150.0,0.00017698,2]
[404257723,1770010246857,-150.0,0.00017698,2]
[404257725,1770010246866,-150.40929257,0.00017698,2]
[404257727,1770010246875,-280.54652626,0.00017698,2]
[404257730,1770010246885,-500.0,0.00017698,2]
[404257732,1770010246895,-500.0,0.00017698,2]
[404257734,1770010246907,-500.0,0.00017698,2]
[404257736,1770010246916,-500.0,0.00017698,2]
[404257738,1770010246925,-150.0,0.00017698,2]
[404257740,1770010246935,-150.0,0.00017698,2]
[404257742,1770010246945,-500.0,0.00017698,2]
[404257744,1770010246954,-4247.0,0.0001771,2]
[404257746,1770010246965,-393.46,0.00017713,2]
[404257748,1770010246974,-4247.0,0.00017717,2]
[404257750,1770010246983,-5888.0,0.00017723,2]
[404257753,1770010246993,-25000.0,0.00017724,3]
[404257755,1770010247005,-25000.0,0.00017733,3]
[404257757,1770010247014,-25000.0,0.00017742,3]
[404257759,1770010247027,-25000.0,0.0001775,3]
[404257761,1770010247036,-150.0,0.00017753,2]
[404257763,1770010247046,-150.0,0.00017753,2]
[404257765,1770010247055,-150.0,0.00017753,2]
[404257767,1770010247064,-500.0,0.00017753,2]
[404257769,1770010247073,-500.0,0.00017753,2]
[404257771,1770010247083,-150.0,0.00017753,2]
[404257773,1770010247092,-150.0,0.00017753,2]
[404257775,1770010247102,-500.0,0.00017753,2]
[404257777,1770010247112,-500.0,0.00017753,2]
[404257779,1770010247121,-150.0,0.00017753,2]
[404257781,1770010247130,-500.0,0.00017753,2]
[404257783,1770010247141,-500.0,0.00017753,2]
[404257785,1770010247151,-501.86439171,0.00017753,2]
[404257787,1770010247160,-504.83440669,0.00017753,2]
[404257790,1770010247170,-150.54573415,0.00017753,2]
[404257792,1770010247180,-250.30543777,0.00017753,2]
[404257794,1770010247189,-500.0,0.00017753,2]
[404257796,1770010247198,-25000.0,0.00017759,3]
[404257798,1770010247208,-154.05044855,0.00017765,2]
[404257800,1770010247217,-25000.0,0.00017768,3]
[404257802,1770010247227,-25000.0,0.00017777,3]
[404257804,1770010247236,-150.00026023,0.00017779,2]
[404257806,1770010247245,-25000.0,0.00017786,3]
[404257808,1770010247254,-1278.693,0.00017788,2]
[404257810,1770010247264,-161.033,0.00017788,2]
[404257812,1770010247273,-1205.0,0.00017788,2]
[404257814,1770010247285,-925.751,0.00017788,2]
[404257816,1770010247294,-25000.0,0.00017794,3]
[404257818,1770010247304,-3392.25741814,0.000178,2]
[404257821,1770010247315,-1500.0,0.000178,2]
[404257823,1770010247325,-1000.0,0.00017803,2]
[404257825,1770010247335,-883.519,0.00017803,2]
[404257827,1770010247346,-25000.0,0.00017803,3]
[404257829,1770010247355,-4247.0,0.00017804,2]
[404257831,1770010247364,-500.0,0.00017808,2]
[404257833,1770010247374,-150.0,0.00017808,2]
[404257835,1770010247384,-200.0,0.00017808,2]
[404257837,1770010247394,-200.0,0.00017808,2]
[404257839,1770010247404,-500.0,0.00017808,2]
[404257841,1770010247416,-500.0,0.00017808,2]
[404257844,1770010247426,-200.0,0.00017808,2]
[404257846,1770010247436,-150.0,0.00017808,2]
[404257848,1770010247447,-383.0,0.00017808,2]
[404257850,1770010247458,-248.75689772,0.00017808,2]
[404257852,1770010247468,-406.67226287,0.00017808,2]
[404257854,1770010247478,-500.0,0.00017808,2]
[404257856,1770010247488,-1000.0,0.00017808,2]
[404257858,1770010247498,-25000.0,0.00017812,3]
[404257860,1770010247508,-2000.0,0.0001782,2]
[404257862,1770010247519,-25000.0,0.00017821,3]
[404257864,1770010247535,-25000.0,0.0001783,3]
[404257866,1770010247548,-25000.0,0.00017838,3]
[404257868,1770010247558,-25000.0,0.00017847,3]
[404257870,1770010247568,-200.0,0.00017855,2]
[404257872,1770010247579,-618.564,0.00017855,2]
[404257875,1770010247589,-25000.0,0.00017856,3]
[404257877,1770010247598,-200.0,0.00017856,2]
[404257879,1770010247608,-200.0,0.00017856,2]
[404257881,1770010247618,-500.0,0.00017862,2]
[404257882,1770010247629,-500.0,0.00017862,2]
[404257883,1770010247639,-500.0,0.00017862,2]
[404257884,1770010247649,-200.0,0.00017862,2]
[404257885,1770010247659,-500.0,0.00017863,2]
[404257886,1770010247669,-25000.0,0.00017865,3]
[404257887,1770010247680,-25000.0,0.00017874,3]
[404257888,1770010247690,-320.0,0.00017875,2]
[404257890,1770010247700,-160.02702936,0.00017876,2]
[404257892,1770010247710,-25000.0,0.00017882,3]
[404257894,1770010247719,-25000.0,0.00017891,3]
[404257896,1770010247729,-1000.0,0.000179,2]
[404257898,1770010247739,-10139.4576,0.000179,2]
[404257900,1770010247748,-33288.2505,0.000179,2]
[404257902,1770010247758,-6799.4482,0.000179,2]
[404257904,1770010247768,-10000.0,0.000179,2]
[404257906,1770010247779,-25000.0,0.000179,3]
[404257908,1770010247789,-283.5506856,0.000179,2]
[404257909,1770010247799,-309.64096841,0.000179,2]
[404257911,1770010247809,-14686.554816,0.000179,2]
[404257913,1770010247818,-14856.51400885,0.000179,2]
[404257915,1770010247828,-231.35445104,0.000179,2]
[404257917,1770010247837,-1777.28427788,0.000179,3]
[404257919,1770010247847,-5456.35939943,0.000179,2]
[404257921,1770010247857,-14087.0,0.000179,2]
[404257923,1770010247867,-500.0,0.00017917,2]
[404257925,1770010247877,-500.0,0.00017917,2]
[404257927,1770010247886,-500.0,0.00017917,2]
[404257929,1770010247896,-500.0,0.00017918,2]
[404257931,1770010247906,-2000.0,0.0001792,2]
[404257933,1770010247915,-225.18697532,0.00017949,2]
[404257935,1770010247926,-225.18697532,0.00017949,2]
[404257937,1770010247937,-187.78006525,0.00017949,2]
[404257939,1770010247947,-1536.04360649,0.00017949,2]
[404257941,1770010247957,-924.60877284,0.00017949,2]
[404257943,1770010247966,-370.87018135,0.00017959,2]
[404257945,1770010247976,-500.0,0.00017972,2]
[404257947,1770010247986,-500.0,0.00017972,2]
[404257949,1770010247996,-500.0,0.00017972,2]
[404257951,1770010248006,-506.1208044,0.00017972,2]
[404257953,1770010248016,-217.08812203,0.0001799,2]
[404257955,1770010248028,-362109.7374649,0.00017992,2]
[404257957,1770010248039,-248.17115062,0.00017999,2]
[404257959,1770010248049,-299.809,0.00017999,2]
[404257961,1770010248059,-300.0,0.00017999,2]
[404257963,1770010248069,-300.0,0.00017999,2]
[404257965,1770010248079,-300.0,0.00017999,2]
[404257967,1770010248088,-666.0,0.00017999,2]
[404257969,1770010248098,-300.0,0.00017999,2]
[404257971,1770010248108,-2975391.62139592,0.00018,2]
[404258002,1770010248395,-730.41582853,0.00018,2]
[404258005,1770010248407,-768.71294345,0.00018,2]
[404258022,1770010248572,165.26670937,0.00012512,2]
[404258041,1770010248740,-298.0,0.00012999,2]
[404258043,1770010248751,-271.46602208,0.00012999,2]
[404258045,1770010248762,-416.62661885,0.00012999,2]
[404258047,1770010248774,-368.77059222,0.00012999,2]
[404258050,1770010248785,-42.97871868,0.00013685,2]
[404258052,1770010248796,-867.23724345,0.00013685,2]
[404258058,1770010248848,-360.69830151,0.00013685,2]
[404258060,1770010248858,-151.0,0.00015196,2]
[404258062,1770010248867,-151.0,0.00015196,2]
[404258064,1770010248877,-176.3773302,0.00015921,2]
[404258067,1770010248887,-975819.38619096,0.00018,2]
[404258069,1770010248896,-13342.50911171,0.00018,2]
[404258070,1770010248907,-96172.28004146,0.00018,2]
[404258071,1770010248917,-1152781.65675029,0.00018,2]
[404258073,1770010248954,-239.86447206,0.00015373,2]
[404258074,1770010248963,-6547.86731244,0.00018,2]
[404258075,1770010249204,-1270.91426363,0.00015793,2]
[404258076,1770010249214,-182847.40670168,0.00018,2]
[404258077,1770010249225,-5570.45453968,0.00018,2]